bitfinex/quotes_BTCUSD_20240911
["timestamp","ask_amount","ask_price","bid_price","bid_amount"]
[1726026958276,0.67207618,56883.0,56882.0,0.1178027]
[1726026958277,0.60767618,56883.0,56882.0,0.1178027]
[1726026959466,0.009818,56883.0,56882.0,0.1977447]
[1726026959685,0.009818,56883.0,56882.0,0.3390447]
[1726026959903,0.99685034,56883.0,56882.0,0.0041027]
[1726026960120,1.06335034,56883.0,56882.0,0.0041027]
[1726026960344,1.49645238,56883.0,56882.0,0.0041027]
[1726026960584,1.93284349,56883.0,56882.0,0.0041027]
[1726026960807,1.87073138,56883.0,56882.0,0.0041027]
[1726026961276,1.88186815,56883.0,56882.0,0.0051027]
[1726026961984,1.70064995,56883.0,56882.0,0.0051027]
[1726026962213,1.80654511,56883.0,56882.0,0.0051027]
[1726026962687,1.80354511,56883.0,56882.0,0.0041027]
[1726026962922,1.71414384,56883.0,56882.0,0.0041027]
[1726026963145,1.54226611,56883.0,56882.0,0.0041027]
[1726026963379,1.52226611,56883.0,56882.0,0.0041027]
[1726026963825,1.55026611,56883.0,56882.0,0.0041027]
[1726026967980,1.70829601,56883.0,56882.0,0.0041027]
[1726026968191,1.55026611,56883.0,56882.0,0.0041027]
[1726026968399,1.70827256,56883.0,56882.0,0.0041027]
[1726026969055,1.55026611,56883.0,56882.0,0.0041027]
[1726026969272,1.70824979,56883.0,56882.0,0.0041027]
[1726026969707,2.16569834,56883.0,56882.0,0.0041027]
[1726026969928,2.00771466,56883.0,56882.0,0.0041027]
[1726026970151,1.72643566,56883.0,56882.0,0.0041027]
[1726026970393,1.88441284,56883.0,56882.0,0.0041027]
[1726026970815,1.98952229,56883.0,56882.0,0.0041027]
[1726026971255,1.70824329,56883.0,56882.0,0.0041027]
[1726026971488,1.98952229,56883.0,56882.0,0.0041027]
[1726026971700,1.70824329,56883.0,56882.0,0.0041027]
[1726026971908,1.98952229,56883.0,56882.0,0.0041027]
[1726026972131,2.16562957,56883.0,56882.0,0.0041027]
[1726026972354,2.00771466,56883.0,56882.0,0.0041027]
[1726026972866,2.16562957,56883.0,56882.0,0.0041027]
[1726026973743,2.06771466,56883.0,56882.0,0.0041027]
[1726026973957,1.89154511,56883.0,56882.0,0.0041027]
[1726026974647,1.89354511,56883.0,56882.0,0.0041027]
[1726026977616,2.17482411,56883.0,56882.0,0.0041027]
[1726026978143,1.046494,56882.0,56881.0,0.001636]
[1726026978367,2.12207173,56882.0,56881.0,0.001636]
[1726026978799,1.84078773,56882.0,56881.0,0.001636]
[1726026979017,2.12207173,56882.0,56881.0,0.001636]
[1726026979254,0.202649,56879.0,56878.0,0.001636]
[1726026979489,0.202649,56879.0,56857.0,0.0321793]
[1726026979490,0.73239416,56872.0,56860.0,0.0024667]
[1726026979715,1.75233334,56872.0,56860.0,0.0024667]
[1726026979937,2.01020075,56872.0,56860.0,0.0024667]
[1726026980373,2.00820075,56872.0,56860.0,0.0024667]
[1726026980636,1.64983334,56872.0,56866.0,0.06]
[1726026981083,1.67783334,56872.0,56866.0,0.06]
[1726026981296,1.83459055,56872.0,56866.0,0.06]
[1726026981508,1.75501711,56872.0,56866.0,0.06]
[1726026981934,1.78502085,56872.0,56866.0,0.06]
[1726026982624,1.76902085,56872.0,56866.0,0.06]
[1726026982838,1.79902085,56872.0,56866.0,0.06]
[1726026983263,1.81302085,56872.0,56866.0,0.06]
[1726026983473,1.86926763,56872.0,56866.0,0.06]
[1726026983686,1.83926763,56872.0,56866.0,0.06]
[1726026983894,1.85326763,56872.0,56866.0,0.06]
[1726026984333,1.36743826,56872.0,56866.0,0.06]
[1726026984566,1.44905599,56872.0,56866.0,0.06]
[1726026985252,1.44905599,56872.0,56871.0,0.0255667]
[1726026985711,1.32716083,56872.0,56871.0,0.0255667]
[1726026985937,1.44905599,56872.0,56871.0,0.0255667]
[1726026986177,1.45020091,56872.0,56871.0,0.0255667]
[1726026986624,1.43620091,56872.0,56871.0,0.0255667]
[1726026986855,1.45020091,56872.0,56871.0,0.0255667]
[1726026988001,1.45020091,56872.0,56871.0,0.0272027]
[1726026989420,1.50274325,56872.0,56871.0,0.0272027]
[1726026989894,1.50274325,56872.0,56871.0,0.0042027]
[1726026990127,1.51310091,56872.0,56871.0,0.0042027]
[1726026990357,1.59191443,56872.0,56871.0,0.0042027]
[1726026990858,1.67241443,56872.0,56871.0,0.0042027]
[1726026991069,1.59360091,56872.0,56871.0,0.0042027]
[1726026991294,1.48570575,56872.0,56871.0,0.0042027]
[1726026991524,1.6986856,56872.0,56871.0,0.0042027]
[1726026991761,1.56279044,56872.0,56871.0,0.0042027]
[1726026991987,1.6041856,56872.0,56871.0,0.0042027]
[1726026992210,1.56448503,56872.0,56871.0,0.0042027]
[1726026992431,1.53822338,56872.0,56871.0,0.0042027]
[1726026992657,1.44540034,56872.0,56871.0,0.0042027]
[1726026992874,1.53822338,56872.0,56871.0,0.0042027]
[1726026993093,1.71439293,56872.0,56871.0,0.0042027]
[1726026993521,1.70039293,56872.0,56871.0,0.0042027]
[1726026993965,1.71439293,56872.0,56871.0,0.0042027]
[1726026994176,1.74065458,56872.0,56871.0,0.0042027]
[1726026995241,1.63556989,56872.0,56871.0,0.0042027]
[1726026997340,1.76694212,56872.0,56871.0,0.0042027]
[1726026998104,2.04827512,56872.0,56871.0,0.0042027]
[1726026998326,1.76694212,56872.0,56871.0,0.0042027]
[1726026999396,1.63556989,56872.0,56871.0,0.0042027]
[1726027000484,1.45940034,56872.0,56871.0,0.0042027]
[1726027001948,1.74073334,56872.0,56871.0,0.0042027]
[1726027002378,1.80073334,56872.0,56871.0,0.0042027]
[1726027003417,1.9584736,56872.0,56871.0,0.0042027]
[1726027004326,1.80073334,56872.0,56871.0,0.0042027]
[1726027004550,1.97690289,56872.0,56871.0,0.0042027]
[1726027005215,1.97890289,56872.0,56871.0,0.0042027]
[1726027005871,1.97690289,56872.0,56871.0,0.0042027]
[1726027006313,1.63266989,56872.0,56871.0,0.0042027]
[1726027006741,1.91400289,56872.0,56871.0,0.0042027]
[1726027007180,1.44250034,56872.0,56871.0,0.0042027]
[1726027007634,1.45650034,56872.0,56871.0,0.0042027]
[1726027008095,1.44250034,56872.0,56871.0,0.0042027]
[1726027008306,1.42850034,56872.0,56871.0,0.0042027]
[1726027008774,0.89327218,56872.0,56871.0,0.0042027]
[1726027009018,0.87927218,56872.0,56871.0,0.0923027]
[1726027009464,1.02493729,56872.0,56871.0,0.0923027]
[1726027009674,1.01093729,56872.0,56871.0,0.0923027]
[1726027010114,0.90727218,56872.0,56871.0,0.0923027]
[1726027010327,1.13893729,56872.0,56871.0,0.0918027]
[1726027010535,1.13893729,56872.0,56871.0,0.0914027]
[1726027011006,1.12493729,56872.0,56871.0,0.0913027]
[1726027011207,1.13893729,56872.0,56871.0,0.0907027]
[1726027011511,1.00727218,56872.0,56871.0,0.0905027]
[1726027011734,1.25854661,56872.0,56871.0,0.0905027]
[1726027011979,0.85762158,56872.0,56871.0,0.0903027]
[1726027012201,0.1596824,56872.0,56871.0,0.3385717]
[1726027012452,0.028,56872.0,56871.0,0.6199097]
[1726027012669,0.028,56872.0,56871.0,0.1978027]
[1726027012907,0.028,56872.0,56871.0,0.1977027]
[1726027013167,0.028,56872.0,56871.0,0.1970027]
[1726027013388,0.140661,56874.0,56872.0,0.0651]
[1726027013637,0.24855616,56874.0,56873.0,0.023]
[1726027013850,0.81120216,56874.0,56873.0,0.023]
[1726027014079,1.1715508,56874.0,56873.0,0.023]
[1726027014306,1.09252516,56874.0,56873.0,0.023]
[1726027015450,1.26846534,56874.0,56873.0,0.023]
[1726027015674,1.07512064,56874.0,56873.0,0.023]
[1726027015920,1.03979623,56874.0,56873.0,0.023]
[1726027016408,1.04879623,56874.0,56873.0,0.023]
[1726027016875,1.06279623,56874.0,56873.0,0.023]
[1726027017573,1.01014234,56874.0,56873.0,0.023]
[1726027017800,1.03979623,56874.0,56873.0,0.023]
[1726027018033,1.04779623,56874.0,56873.0,0.023]
[1726027018251,1.06179623,56874.0,56873.0,0.023]
[1726027018475,1.00914234,56874.0,56873.0,0.023]
[1726027022401,1.15143005,56874.0,56873.0,0.023]
[1726027024035,1.00914234,56874.0,56873.0,0.023]
[1726027024927,0.70332,56873.0,56872.0,0.023]
[1726027025160,0.87926018,56873.0,56872.0,0.023]
[1726027026281,0.88626018,56873.0,56872.0,0.023]
[1726027026781,0.89826018,56873.0,56872.0,0.023]
[1726027027723,0.89826018,56873.0,56871.0,0.0656027]
[1726027027724,0.703332,56872.0,56871.0,0.0005027]
[1726027027958,1.73909679,56872.0,56871.0,0.0005027]
[1726027028191,1.60753818,56872.0,56871.0,0.0005027]
[1726027028911,1.68553818,56872.0,56871.0,0.0005027]
[1726027029158,1.86170773,56872.0,56871.0,0.0005027]
[1726027029372,1.86770773,56872.0,56871.0,0.0005027]
[1726027029815,1.87870773,56872.0,56871.0,0.0005027]
[1726027030727,1.87270773,56872.0,56871.0,0.0005027]
[1726027030957,1.86170773,56872.0,56871.0,0.0005027]
[1726027031175,1.87070773,56872.0,56871.0,0.0005027]
[1726027031393,1.87570773,56872.0,56871.0,0.0005027]
[1726027031855,1.88970773,56872.0,56871.0,0.0005027]
[1726027032083,1.98360289,56872.0,56871.0,0.0005027]
[1726027032789,1.96960289,56872.0,56871.0,0.0005027]
[1726027033018,1.98360289,56872.0,56871.0,0.0005027]
[1726027033266,1.90530289,56872.0,56871.0,0.0005027]
[1726027033482,1.78157669,56872.0,56871.0,0.0005027]
[1726027033703,1.65013334,56872.0,56871.0,0.0005027]
[1726027033927,1.66383334,56872.0,56871.0,0.0005027]
[1726027034444,1.80928555,56872.0,56871.0,0.0005027]
[1726027034901,1.52795255,56872.0,56871.0,0.0005027]
[1726027035131,1.50166272,56872.0,56871.0,0.0005027]
[1726027035596,1.50165889,56872.0,56871.0,0.0005027]
[1726027035816,1.48765889,56872.0,56871.0,0.0005027]
[1726027036006,1.47365889,56872.0,56871.0,0.0005027]
[1726027036255,1.48765889,56872.0,56871.0,0.0005027]
[1726027036503,1.6482514,56872.0,56871.0,0.0005027]
[1726027036718,1.6342514,56872.0,56871.0,0.0005027]
[1726027037177,1.48765889,56872.0,56871.0,0.0005027]
[1726027037397,0.99327218,56872.0,56871.0,0.0990027]
[1726027037616,1.00327218,56872.0,56871.0,0.1637027]
[1726027039413,1.00327218,56872.0,56871.0,0.1653387]
[1726027040093,1.16626247,56872.0,56871.0,0.1653387]
[1726027040537,1.16626247,56872.0,56871.0,0.0251387]
[1726027040980,1.21881008,56872.0,56871.0,0.0251387]
[1726027041419,1.05581979,56872.0,56871.0,0.0251387]
[1726027043239,1.05581979,56872.0,56871.0,0.0898387]
[1726027043474,1.00327218,56872.0,56871.0,0.0898387]
[1726027044894,1.00327218,56872.0,56871.0,0.1653387]
[1726027045550,1.05580797,56872.0,56871.0,0.1653387]
[1726027045807,1.00327218,56872.0,56871.0,0.1653387]
[1726027046782,0.90327218,56872.0,56871.0,0.1653387]
[1726027047006,0.34060618,56872.0,56871.0,0.1950387]
[1726027047236,0.62193918,56872.0,56871.0,0.1950387]
[1726027047465,0.34060618,56872.0,56871.0,0.1950387]
[1726027048138,0.62193918,56872.0,56871.0,0.1950387]
[1726027050262,0.024,56872.0,56871.0,0.1950387]
[1726027050720,0.01,56872.0,56871.0,0.1950387]
[1726027051036,0.021,56872.0,56871.0,0.1950387]
[1726027051711,0.011,56872.0,56871.0,0.1950387]
[1726027052161,0.015,56872.0,56871.0,0.1950387]
[1726027052420,0.004,56872.0,56871.0,0.1950387]
[1726027052843,0.01,56872.0,56871.0,0.1950387]
[1726027053320,0.141482,56873.0,56871.0,0.1939387]
[1726027053586,0.141482,56873.0,56872.0,0.0636]
[1726027054039,0.141482,56873.0,56872.0,0.0866]
[1726027054801,0.000818,56873.0,56872.0,0.0866]
[1726027055245,0.000818,56873.0,56872.0,0.0886]
[1726027055704,0.141482,56873.0,56872.0,0.0886]
[1726027055934,0.004818,56873.0,56872.0,0.0886]
[1726027056176,0.004818,56873.0,56872.0,0.540299]
[1726027056424,0.000818,56873.0,56872.0,0.540299]
[1726027056658,0.000818,56873.0,56872.0,0.621499]
[1726027056908,0.000818,56873.0,56872.0,0.340166]
[1726027056909,0.004818,56873.0,56872.0,0.340166]
[1726027058287,0.004818,56873.0,56872.0,0.1995]
[1726027058526,0.11271316,56873.0,56872.0,0.1995]
[1726027059007,0.004818,56873.0,56872.0,0.1995]
[1726027062055,0.145482,56873.0,56872.0,0.1995]
[1726027062271,0.004818,56873.0,56872.0,0.1995]
[1726027066115,0.004818,56873.0,56872.0,0.340166]
[1726027069251,0.004818,56873.0,56872.0,0.1995]
[1726027070355,0.004818,56873.0,56872.0,0.621499]
[1726027071074,0.000818,56874.0,56873.0,0.543692]
[1726027071320,0.000818,56878.0,56877.0,0.88407]
[1726027071533,0.000818,56878.0,56877.0,2.16166095]
[1726027071785,0.000818,56878.0,56877.0,2.30175995]
[1726027072036,0.000818,56883.0,56882.0,1.387478]
[1726027072249,0.000818,56883.0,56882.0,1.9986397]
[1726027073186,0.000818,56883.0,56882.0,2.23417817]
[1726027073396,0.001818,56883.0,56882.0,2.23617817]
[1726027073832,0.001818,56883.0,56882.0,2.31514453]
[1726027074770,0.001818,56883.0,56882.0,2.23617817]
[1726027075210,0.4768,56894.0,56893.0,1.36002252]
[1726027075421,0.4768,56894.0,56893.0,1.5359627]
[1726027075665,0.4768,56894.0,56893.0,1.5379627]
[1726027076577,0.4768,56894.0,56893.0,1.5359627]
[1726027077027,0.4778,56894.0,56893.0,1.5429627]
[1726027077246,0.001,56894.0,56893.0,1.5679627]
[1726027078625,0.002,56894.0,56893.0,1.5719627]
[1726027080810,0.002,56894.0,56893.0,0.902872]
[1726027081024,0.002,56894.0,56893.0,1.184101]
[1726027082246,0.002,56894.0,56893.0,1.180101]
[1726027082247,0.001,56894.0,56893.0,1.180101]
[1726027082682,0.001964,56899.0,56898.0,0.70301]
[1726027082876,0.001964,56899.0,56898.0,0.72601]
[1726027083959,0.001964,56899.0,56898.0,0.72701]
[1726027084528,0.001964,56899.0,56898.0,0.445806]
[1726027084728,0.002964,56899.0,56898.0,0.198302]
[1726027085369,0.002964,56899.0,56898.0,0.479506]
[1726027085808,0.002964,56899.0,56898.0,0.478506]
[1726027086020,0.004964,56899.0,56898.0,0.474506]
[1726027086229,0.004964,56899.0,56898.0,0.476506]
[1726027086643,0.002782,56899.0,56898.0,0.476506]
[1726027086892,0.005782,56899.0,56898.0,0.476506]
[1726027087363,0.005782,56899.0,56898.0,0.75771]
[1726027087595,0.005782,56899.0,56898.0,1.038914]
[1726027087826,0.005782,56899.0,56898.0,1.038014]
[1726027088988,0.00569399,56899.0,56898.0,1.099114]
[1726027089634,0.00569399,56899.0,56898.0,0.81791]
[1726027091649,0.00569399,56899.0,56898.0,0.75681]
[1726027104447,0.00569399,56899.0,56898.0,1.038014]
[1726027104657,0.00569399,56899.0,56898.0,0.75681]
[1726027105781,0.00569399,56899.0,56898.0,1.038014]
[1726027110168,0.00569399,56899.0,56898.0,1.03965]
[1726027112707,0.00569399,56899.0,56898.0,1.23850802]
[1726027113136,0.00569399,56899.0,56898.0,1.30495245]
[1726027113604,0.00569399,56899.0,56898.0,1.30490514]
[1726027113810,0.000818,56907.0,56900.0,0.702987]
[1726027114033,0.000818,56907.0,56900.0,0.7448739]
[1726027114252,0.000818,56907.0,56900.0,0.725987]
[1726027114477,0.000818,56907.0,56900.0,0.7448739]
[1726027114931,0.000818,56907.0,56900.0,0.725987]
[1726027116267,0.000818,56907.0,56900.0,0.726987]
[1726027116268,0.005818,56901.0,56900.0,0.726987]
[1726027117360,0.005818,56901.0,56900.0,0.77951447]
[1726027117815,0.005818,56901.0,56900.0,0.77976154]
[1726027119379,0.005818,56901.0,56900.0,0.78076154]
[1726027119584,0.005818,56901.0,56900.0,0.727987]
[1726027120004,0.000818,56901.0,56900.0,0.726987]
[1726027120222,0.004818,56901.0,56900.0,0.726987]
[1726027123280,0.004818,56901.0,56900.0,1.008182]
[1726027123512,0.004818,56901.0,56900.0,0.726987]
[1726027124197,0.004818,56901.0,56900.0,1.008182]
[1726027124424,0.004818,56901.0,56900.0,0.791087]
[1726027124638,0.004818,56901.0,56900.0,1.072282]
[1726027125327,0.004818,56901.0,56900.0,0.791087]
[1726027125761,0.004818,56901.0,56900.0,1.072282]
[1726027126845,0.000818,56901.0,56900.0,1.072282]
[1726027127056,0.000818,56901.0,56900.0,0.791087]
[1726027127482,0.000818,56901.0,56900.0,1.072282]
[1726027127691,0.000818,56901.0,56900.0,1.077282]
[1726027127692,0.001818,56901.0,56900.0,1.077282]
[1726027127932,0.001818,56901.0,56900.0,1.106982]
[1726027128150,0.001818,56901.0,56900.0,1.16174757]
[1726027128381,0.001818,56901.0,56900.0,1.36768775]
[1726027128605,0.001818,56901.0,56900.0,1.38912218]
[1726027129240,0.001818,56901.0,56900.0,0.825787]
[1726027129490,0.061818,56901.0,56900.0,0.761687]
[1726027130389,0.001818,56901.0,56900.0,0.761687]
[1726027137756,0.001818,56901.0,56900.0,1.30174431]
[1726027141977,0.001818,56901.0,56900.0,1.30173406]
[1726027142639,0.001818,56901.0,56900.0,1.30373406]
[1726027143049,0.001818,56901.0,56900.0,1.30173406]
[1726027144053,0.001818,56901.0,56900.0,1.28292218]
[1726027144266,0.001818,56901.0,56900.0,1.30176167]
[1726027145152,0.001818,56901.0,56900.0,1.30176565]
[1726027145659,0.001818,56901.0,56900.0,1.30376565]
[1726027147389,0.001818,56901.0,56900.0,1.4763579]
[1726027151168,0.000818,56907.0,56906.0,1.043777]
[1726027151387,0.000818,56907.0,56906.0,1.2745652]
[1726027152827,0.000818,56907.0,56906.0,1.3396652]
[1726027152828,0.005818,56907.0,56906.0,1.3396652]
[1726027154386,0.005818,56907.0,56906.0,1.32830452]
[1726027155049,0.005818,56907.0,56906.0,1.22051632]
[1726027155475,0.005818,56907.0,56906.0,1.167777]
[1726027157221,0.005818,56907.0,56906.0,0.171282]
[1726027157222,0.148518,56907.0,56906.0,0.171282]
[1726027157518,0.148518,56907.0,56906.0,0.0307]
[1726027158551,0.148518,56907.0,56906.0,0.171282]
[1726027158802,0.148518,56907.0,56906.0,0.0307]
[1726027159025,0.148518,56907.0,56906.0,0.0537]
[1726027161104,0.005818,56907.0,56906.0,0.756612]
[1726027161550,0.005818,56907.0,56906.0,1.36045251]
[1726027161799,0.4768,56918.0,56909.0,0.764575]
[1726027162025,0.4768,56918.0,56909.0,1.55345338]
[1726027162255,0.4768,56918.0,56909.0,1.89379614]
[1726027162519,0.4768,56918.0,56909.0,1.98651595]
[1726027163015,0.4768,56918.0,56909.0,2.26766595]
[1726027163235,0.4768,56918.0,56909.0,1.98451595]
[1726027163474,0.0042847,56910.0,56909.0,1.79632347]
[1726027163932,0.0042847,56910.0,56909.0,1.81932347]
[1726027164181,0.0042847,56910.0,56909.0,1.99650561]
[1726027164402,0.0042847,56910.0,56909.0,1.89107882]
[1726027164633,0.0042847,56910.0,56909.0,1.99844486]
[1726027164855,0.0052847,56910.0,56909.0,2.00444486]
[1726027165080,0.0052847,56910.0,56909.0,2.09030313]
[1726027165306,0.0052847,56910.0,56909.0,1.95859881]
[1726027165539,0.0062847,56910.0,56909.0,2.06993407]
[1726027165767,0.0062847,56910.0,56909.0,2.09630313]
[1726027166218,0.60782518,56927.0,56921.0,0.732427]
[1726027166219,0.0627,56926.0,56921.0,0.732427]
[1726027167365,0.0627,56926.0,56921.0,1.013518]
[1726027167609,0.0627,56926.0,56921.0,1.18945818]
[1726027168133,0.0627,56926.0,56921.0,1.19445818]
[1726027168385,0.0627,56926.0,56921.0,1.21745818]
[1726027169083,0.000818,56930.0,56921.0,1.21745818]
[1726027169302,0.0645,56929.0,56921.0,1.21745818]
[1726027171175,0.0032847,56922.0,56921.0,1.21745818]
[1726027174597,0.0645,56929.0,56928.0,0.73234]
[1726027174598,0.1451,56929.0,56928.0,0.73234]
[1726027174814,0.1451,56929.0,56928.0,0.0297]
[1726027175290,0.285625,56929.0,56928.0,0.0297]
[1726027175789,0.566676,56929.0,56928.0,0.0297]
[1726027175992,0.570676,56929.0,56928.0,0.0297]
[1726027176221,0.566676,56929.0,56928.0,0.0297]
[1726027176458,0.285625,56929.0,56928.0,0.0527]
[1726027176671,0.293625,56929.0,56928.0,0.0537]
[1726027177074,0.285625,56929.0,56928.0,0.0527]
[1726027177500,0.304625,56929.0,56928.0,0.0547]
[1726027177715,0.296625,56929.0,56928.0,0.0537]
[1726027178153,0.303625,56929.0,56928.0,0.0547]
[1726027179283,0.292625,56929.0,56928.0,0.0537]
[1726027179767,0.303625,56929.0,56928.0,0.0547]
[1726027180212,0.1521,56929.0,56928.0,0.194228]
[1726027180645,0.1631,56929.0,56928.0,0.0547]
[1726027180859,0.1631,56929.0,56928.0,0.0537]
[1726027181103,0.1561,56929.0,56928.0,0.0537]
[1726027181521,0.1561,56929.0,56928.0,0.0547]
[1726027181739,0.1631,56929.0,56928.0,0.0547]
[1726027182175,1.04166718,56929.0,56928.0,0.0547]
[1726027183192,0.76061618,56929.0,56928.0,0.0547]
[1726027184688,0.76143318,56929.0,56928.0,0.0547]
[1726027187772,1.04248418,56929.0,56928.0,0.025]
[1726027189762,0.76143318,56929.0,56928.0,0.0547]
[1726027192823,0.083317,56929.0,56928.0,0.0547]
[1726027196831,0.018817,56929.0,56928.0,0.195228]
[1726027197060,0.018817,56929.0,56928.0,0.476284]
[1726027197282,0.018817,56929.0,56928.0,0.75734]
[1726027197508,0.018817,56929.0,56928.0,1.038396]
[1726027197953,0.011817,56929.0,56928.0,0.75534]
[1726027198190,0.000817,56929.0,56928.0,0.75534]
[1726027198405,0.014817,56929.0,56928.0,0.75634]
[1726027198624,0.009817,56929.0,56928.0,0.75634]
[1726027199043,0.000817,56929.0,56928.0,0.76034]
[1726027199473,0.001817,56929.0,56928.0,0.76034]
[1726027200169,0.001817,56929.0,56928.0,0.479284]
[1726027200846,0.001817,56929.0,56928.0,0.198228]
[1726027201336,0.001817,56929.0,56928.0,0.0577]
[1726027201545,0.66253318,56929.0,56928.0,0.0347]
[1726027201763,0.94358418,56929.0,56928.0,0.0347]
[1726027202197,0.66253318,56929.0,56928.0,0.0297]
[1726027202452,0.421599,56926.0,56925.0,0.0297]
[1726027202676,0.421599,56926.0,56922.0,0.001634]
[1726027202677,0.421621,56923.0,56922.0,0.031334]
[1726027202956,0.66076118,56923.0,56922.0,0.001634]
[1726027203178,0.66076118,56923.0,56922.0,0.031334]
[1726027203179,1.02504218,56923.0,56922.0,0.031334]
[1726027203413,1.30612318,56923.0,56922.0,0.001634]
[1726027203642,1.02504218,56923.0,56922.0,0.001634]
[1726027204093,1.02504218,56923.0,56922.0,0.031334]
[1726027205002,1.02504218,56923.0,56922.0,0.054334]
[1726027205233,1.03604218,56923.0,56922.0,0.055334]
[1726027205681,1.03604218,56923.0,56922.0,0.025634]
[1726027205914,1.04804218,56923.0,56922.0,0.026634]
[1726027206373,1.04804218,56923.0,56922.0,0.056334]
[1726027213959,0.96484218,56923.0,56922.0,0.056334]
[1726027214209,0.95284218,56923.0,56922.0,0.055334]
[1726027214474,0.16254,56923.0,56922.0,0.056334]
[1726027214687,0.15154,56923.0,56922.0,0.055334]
[1726027215377,0.430621,56923.0,56922.0,0.055334]
[1726027215623,0.95044218,56923.0,56922.0,0.055334]
[1726027215864,1.29762318,56923.0,56922.0,0.054334]
[1726027216522,1.29662318,56923.0,56922.0,0.054334]
[1726027216987,1.29662318,56923.0,56922.0,0.024634]
[1726027217476,1.30262318,56923.0,56922.0,0.025634]
[1726027217955,1.29762318,56923.0,56922.0,0.024634]
[1726027218415,1.29762318,56923.0,56922.0,0.025634]
[1726027218416,1.30362318,56923.0,56922.0,0.025634]
[1726027218877,1.33115744,56923.0,56922.0,0.025634]
[1726027220291,1.30362318,56923.0,56922.0,0.025634]
[1726027221921,1.30444018,56923.0,56922.0,0.025634]
[1726027222622,1.7996604,56923.0,56922.0,0.025634]
[1726027222869,1.82595674,56923.0,56922.0,0.025634]
[1726027223101,1.74706772,56923.0,56922.0,0.025634]
[1726027223329,1.85225309,56923.0,56922.0,0.025634]
[1726027223558,1.58552118,56923.0,56922.0,0.025634]
[1726027223997,1.57952118,56923.0,56922.0,0.024634]
[1726027224234,1.59352118,56923.0,56922.0,0.025634]
[1726027224717,1.59352118,56923.0,56922.0,0.024634]
[1726027224718,1.57852118,56923.0,56922.0,0.024634]
[1726027224949,1.59252118,56923.0,56922.0,0.025634]
[1726027225191,1.71170655,56923.0,56922.0,0.026634]
[1726027225426,1.69770655,56923.0,56922.0,0.025634]
[1726027225645,1.57852118,56923.0,56922.0,0.024634]
[1726027225907,1.69252118,56923.0,56922.0,0.025634]
[1726027227474,1.77136834,56923.0,56922.0,0.025634]
[1726027227706,1.78536834,56923.0,56922.0,0.026634]
[1726027230470,1.70652118,56923.0,56922.0,0.026634]
[1726027233696,1.75908291,56923.0,56922.0,0.026634]
[1726027235486,1.78661959,56923.0,56922.0,0.026634]
[1726027236144,1.89440367,56923.0,56922.0,0.026634]
[1726027237921,1.89299825,56923.0,56922.0,0.026634]
[1726027238394,1.78520846,56923.0,56922.0,0.026634]
[1726027238607,1.89299825,56923.0,56922.0,0.026634]
[1726027239081,0.65250944,56923.0,56922.0,0.026634]
[1726027239320,0.65250944,56923.0,56922.0,0.056334]
[1726027239321,0.93359044,56923.0,56922.0,0.056334]
[1726027239537,0.90605376,56923.0,56922.0,0.056334]
[1726027240267,0.90605376,56923.0,56911.0,0.28114]
[1726027240268,0.140555,56917.0,56911.0,0.0297]
[1726027240559,0.48791,56911.0,56903.0,0.0297]
[1726027240820,0.48791,56911.0,56899.0,0.001636]
[1726027240821,1.12903582,56911.0,56899.0,0.001636]
[1726027241072,1.61481979,56911.0,56899.0,0.001636]
[1726027241568,1.050347,56902.0,56899.0,0.001636]
[1726027241805,1.43407697,56902.0,56899.0,0.001636]
[1726027242052,1.37880758,56902.0,56899.0,0.001636]
[1726027242275,1.42039737,56902.0,56899.0,0.001636]
[1726027242493,1.36787697,56902.0,56899.0,0.001636]
[1726027242704,1.39542395,56902.0,56899.0,0.001636]
[1726027243150,1.39542395,56902.0,56901.0,0.024636]
[1726027244288,1.30163416,56902.0,56901.0,0.024636]
[1726027244991,1.31163416,56902.0,56901.0,0.024636]
[1726027249174,1.28408718,56902.0,56901.0,0.024636]
[1726027252514,1.31163326,56902.0,56901.0,0.024636]
[1726027255055,0.47332308,56902.0,56901.0,0.118636]
[1726027255932,0.93044826,56902.0,56901.0,0.054336]
[1726027257117,0.93044826,56902.0,56901.0,0.024636]
[1726027257358,0.93044826,56902.0,56901.0,0.054336]
[1726027257546,0.93044826,56902.0,56901.0,0.024636]
[1726027259078,0.91644826,56902.0,56901.0,0.024636]
[1726027259313,0.88890218,56902.0,56901.0,0.024636]
[1726027260277,0.87890218,56902.0,56901.0,0.024636]
[1726027260477,0.89190218,56902.0,56901.0,0.024636]
[1726027260705,0.90590218,56902.0,56901.0,0.024636]
[1726027260927,0.89290218,56902.0,56901.0,0.024636]
[1726027261425,1.01186394,56902.0,56901.0,0.054336]
[1726027261937,1.02586394,56902.0,56901.0,0.054336]
[1726027262382,0.90490218,56902.0,56901.0,0.054336]
[1726027262841,1.18608718,56902.0,56901.0,0.054336]
[1726027263054,0.90490218,56902.0,56901.0,0.054336]
[1726027263280,0.89290218,56902.0,56901.0,0.054336]
[1726027263504,1.17408718,56902.0,56901.0,0.024636]
[1726027263725,0.90490218,56902.0,56901.0,0.024636]
[1726027263955,0.89290218,56902.0,56901.0,0.024636]
[1726027264212,0.90390218,56902.0,56901.0,0.024636]
[1726027264442,0.88990218,56902.0,56901.0,0.024636]
[1726027264856,1.17108718,56902.0,56901.0,0.024636]
[1726027265110,0.88990218,56902.0,56901.0,0.024636]
[1726027265342,0.90390218,56902.0,56901.0,0.024636]
[1726027265789,0.88990218,56902.0,56901.0,0.054336]
[1726027266252,0.90390218,56902.0,56901.0,0.054336]
[1726027266485,0.90390218,56902.0,56901.0,0.024636]
[1726027266699,1.00074011,56902.0,56901.0,0.024636]
[1726027266937,1.28192511,56902.0,56901.0,0.024636]
[1726027267150,1.29592511,56902.0,56901.0,0.024636]
[1726027267362,1.00074011,56902.0,56901.0,0.024636]
[1726027267583,1.15065717,56902.0,56901.0,0.024636]
[1726027267809,1.43184217,56902.0,56901.0,0.024636]
[1726027268271,1.15065717,56902.0,56901.0,0.024636]
[1726027268492,0.88990218,56902.0,56901.0,0.054336]
[1726027268946,0.90390218,56902.0,56901.0,0.054336]
[1726027269391,0.02754549,56903.0,56902.0,0.0297]
[1726027269630,0.02754549,56903.0,56902.0,0.311892]
[1726027269837,0.422534,56910.0,56909.0,0.094]